fUST/lending_fUST_20240101
["ID","MTS","AMOUNT","RATE_DAILY","PERIOD"]
[309737997,1704039032693,-899.40143974,0.00026929,2]
[309737998,1704039032703,-313.90489269,0.00026929,2]
[309738000,1704039032713,-524.55826807,0.0002693,2]
[309738002,1704039032722,-7539.00412724,0.0002693,2]
[309738006,1704039032811,-9330.80636184,0.0002693,2]
[309738007,1704039032844,-2479.19472551,0.00026931,2]
[309738008,1704039032854,-899.40143974,0.00026932,2]
[309738009,1704039032864,-268.42168901,0.00026999,2]
[309738010,1704039032873,-300.0,0.00028792,2]
[309738011,1704039032883,-1820.42162517,0.00028792,2]
[309738012,1704039032893,-166.666666,0.0003054,2]
[309738013,1704039032902,-173.518617,0.00031235,2]
[309738014,1704039032912,-418.078875,0.00031317,2]
[309738015,1704039032921,-418.078875,0.00031317,2]
[309738016,1704039032930,-418.078875,0.00031317,2]
[309738017,1704039032943,-418.078875,0.00031317,2]
[309738018,1704039032953,-418.078875,0.00031317,2]
[309738019,1704039032962,-166.666666,0.00031372,2]
[309738020,1704039032971,-2772.9119083,0.00031574,2]
[309738021,1704039032981,-463.160331,0.0003188,2]
[309738022,1704039032991,-166.666666,0.00032205,2]
[309738023,1704039033001,-245.0,0.00033036,2]
[309738024,1704039033011,-309.05203104,0.00033036,2]
[309738025,1704039033021,-166.666666,0.00033038,2]
[309738026,1704039033032,-477.30076965,0.00033049,2]
[309738027,1704039033042,-166.666666,0.0003387,2]
[309738028,1704039033051,-346.01935478,0.000339,2]
[309738029,1704039033061,-2623.06185187,0.00034,2]
[309738030,1704039033071,-1000.0,0.00034702,7]
[309738031,1704039033080,-166.666666,0.00034703,2]
[309738032,1704039033090,-678.49144181,0.00035962,4]
[309738033,1704039033099,-174.44,0.0003599,3]
[309738034,1704039033108,-155.20689925,0.00035998,4]
[309738035,1704039033117,-2765.37735907,0.00035998,4]
[309738036,1704039033126,-2334.19339693,0.00035998,2]
[309738037,1704039033135,-983.06380421,0.00035998,2]
[309738038,1704039033145,-272.8180135,0.00035998,4]
[309738039,1704039033155,-1036.26915618,0.00035998,4]
[309738040,1704039033164,-327.94237465,0.00035998,4]
[309738041,1704039033174,-156.42694149,0.00035998,4]
[309738042,1704039033183,-5548.28008937,0.00035998,4]
[309738043,1704039033193,-7069.97930883,0.00035998,2]
[309738155,1704039044009,-154.87609912,0.00026928,4]
[309738156,1704039044019,-872.21,0.0003599,3]
[309738157,1704039044029,-2818.42017679,0.00035998,2]
[309738158,1704039044038,-113.4978837,0.00035998,2]
[309738178,1704039046612,-2886.5021163,0.00035998,2]
[309738179,1704039046622,-160.71099365,0.00035998,2]
[309738180,1704039046631,-164.10478437,0.00035999,4]
[309738181,1704039046640,-529.24,0.00035999,2]
[309738182,1704039046650,-529.24,0.00035999,2]
[309738183,1704039046659,-529.24,0.00035999,2]
[309738184,1704039046668,-529.24,0.00035999,2]
[309738185,1704039046677,-320.99138599,0.00035999,4]
[309738192,1704039519041,169.2,0.00023,2]
[309738252,1704040231773,-154.87609912,0.00026694,4]
[309738253,1704040231783,-261.58741058,0.00026695,2]
[309738255,1704040231793,-7539.00412724,0.00026715,2]
[309738256,1704040231802,-6276.13931394,0.00026716,2]
[309738332,1704040239190,-899.40143974,0.00026694,2]
[309738334,1704040239200,-3054.6670479,0.00026716,2]
[309738336,1704040239210,-171.25624071,0.00026721,2]
[309738338,1704040239219,-166.666666,0.00026726,2]
[309738339,1704040239229,-3387.78283413,0.0002683,2]
[309738341,1704040239238,-174.917096,0.0002734,2]
[309738346,1704040239248,-447.639267,0.00027686,2]
[309738348,1704040239257,-174.917096,0.00028352,2]
[309738351,1704040239266,-174.917096,0.00029363,2]
[309738354,1704040239275,-200.0,0.00029391,15]
[309738356,1704040239285,-7018.09266231,0.0003,4]
[309738358,1704040239294,-684.73913361,0.00030374,4]
[309738360,1704040239303,-174.917096,0.00030375,2]
[309738362,1704040239312,-174.917096,0.00031387,2]
[309738364,1704040239322,-165.05763489,0.00033049,2]
[309738366,1704040239333,-230.67956985,0.00033898,2]
[309738368,1704040239342,-1000.0,0.00034,7]
[309738370,1704040239352,-13360.07444524,0.00035599,4]
[309738372,1704040239362,-2500.0,0.000356,5]
[309738373,1704040239371,-316.4,0.00035999,2]
[309738375,1704040239380,-316.4,0.00035999,2]
[309738377,1704040239390,-316.4,0.00035999,2]
[309738379,1704040239399,-316.4,0.00035999,2]
[309738381,1704040239408,-316.4,0.00035999,2]
[309738383,1704040239417,-316.4,0.00035999,2]
[309738385,1704040239426,-316.4,0.00035999,2]
[309738387,1704040239436,-500.0,0.00035999,4]
[309738389,1704040239445,-500.0,0.00035999,4]
[309738391,1704040239454,-273.41727161,0.00035999,4]
[309738393,1704040239463,-500.0,0.00035999,4]
[309738395,1704040239473,-500.0,0.00035999,4]
[309738396,1704040239482,-436.62208745,0.00035999,2]
[309738397,1704040239491,-361.00251026,0.00035999,2]
[309738399,1704040239500,-187.12375177,0.00035999,7]
[309738400,1704040239510,-154.71536154,0.00035999,7]
[309738401,1704040239519,-62368.06494593,0.00036,2]
[309738438,1704040241087,-19428.66279824,0.00036,2]
[309738542,1704040242820,-1375.67192005,0.00036,2]
[309738544,1704040242831,-1879.98999,0.00036,2]
[309738757,1704040245836,-5780.67518656,0.00036,2]
[309738774,1704040257530,1817.83080304,0.00023,2]
[309738886,1704041432012,-154.87609912,0.00027638,4]
[309738888,1704041432022,-4861.35011452,0.00027638,2]
[309738890,1704041432031,-154.87609912,0.00027638,2]
[309738892,1704041432041,-899.40143974,0.00027639,2]
[309738894,1704041432051,-267.5962475,0.00027639,2]
[309738896,1704041432063,-2211.59847801,0.00027639,2]
[309738898,1704041432072,-7539.00412724,0.00027639,2]
[309738900,1704041432082,-299.48910497,0.00027651,2]
[309738902,1704041432091,-7018.09266231,0.0003,4]
[309738904,1704041432101,-10000.0,0.0003,3]
[309738906,1704041432111,-481.281125,0.00030003,2]
[309738908,1704041432120,-166.7492,0.00030995,2]
[309738910,1704041432134,-205.069391,0.00031871,2]
[309738912,1704041432144,-620.14684272,0.00032009,2]
[309738914,1704041432153,-166.7492,0.00032052,2]
[309738916,1704041432162,-200.0,0.00032163,2]
[309738918,1704041432172,-590.90334505,0.00033062,2]
[309738920,1704041432181,-554.94073719,0.00033104,2]
[309738921,1704041432190,-166.7492,0.00033108,2]
[309738923,1704041432199,-486.11795263,0.000339,2]
[309738925,1704041432209,-1000.0,0.00034,7]
[309738927,1704041432218,-166.7492,0.00034164,2]
[309738929,1704041432227,-205.069391,0.0003423,2]
[309738931,1704041432236,-155.0,0.00035,2]
[309738933,1704041432246,-174.071331,0.00035089,2]
[309738935,1704041432255,-166.7492,0.0003522,2]
[309738937,1704041432264,-231.2374,0.0003582,2]
[309738939,1704041432274,-795.77,0.0003589,3]
[309738941,1704041432283,-184.62966564,0.00035897,2]
[309738943,1704041432293,-339.23,0.00035899,2]
[309738945,1704041432301,-339.23,0.00035899,2]
[309738946,1704041432311,-339.23,0.00035899,2]
[309738947,1704041432321,-339.23,0.00035899,2]
[309738948,1704041432330,-339.23,0.00035899,2]
[309738949,1704041432339,-339.23,0.00035899,2]
[309738950,1704041432348,-12651.76209629,0.000359,2]
[309738951,1704041432360,-1493.78920564,0.000359,2]
[309738952,1704041432372,-2625.97657822,0.000359,2]
[309738953,1704041432384,-413.56400175,0.000359,2]
[309739080,1704041438250,-3000.0,0.000359,2]
[309739121,1704041442989,-4630.71622177,0.000359,2]
[309739122,1704041443044,-2171.01414864,0.000359,2]
[309739123,1704041443055,-1873.36823681,0.000359,2]
[309739124,1704041443067,-4483.10837,0.000359,2]
[309739125,1704041443080,-4528.969,0.000359,2]
[309739187,1704041665895,679.57222694,0.00021,2]
[309739240,1704042632154,-4861.35011452,0.00023471,2]
[309739242,1704042632164,-154.86062544,0.00023471,2]
[309739243,1704042632173,-154.86062544,0.00023471,4]
[309739245,1704042632182,-156.4879061,0.00023471,2]
[309739247,1704042632192,-24812.66829,0.00023472,2]
[309739249,1704042632202,-7539.00412724,0.00023709,2]
[309739251,1704042632211,-168.057017,0.00023717,2]
[309739253,1704042632220,-250.0,0.00023937,2]
[309739255,1704042632229,-240.640562,0.00024416,2]
[309739256,1704042632238,-168.057017,0.00024795,2]
[309739258,1704042632247,-8988.02441895,0.00025,2]
[309739260,1704042632257,-200.0,0.00025456,2]
[309739262,1704042632266,-3000.0,0.00025504,2]
[309739264,1704042632276,-859.5074307,0.00025505,2]
[309739318,1704042638418,-899.40143974,0.0002347,2]
[309739319,1704042638429,-1610.24231175,0.00024795,2]
[309739320,1704042638441,-11731.281089,0.00025505,2]
[309739321,1704042638453,-3689.76957093,0.00025602,2]
[309739322,1704042638467,-11584.89796386,0.00025602,2]
[309739323,1704042638480,-1165.84399679,0.00025602,2]
[309739324,1704042638493,-782.12681655,0.00025602,2]
[309739325,1704042638526,-4817.62155889,0.00025602,2]
[309739326,1704042638540,-1461.65388815,0.00025602,2]
[309739360,1704042641478,-1398.08620483,0.00025602,2]
[309739362,1704042641490,-168.057017,0.00025873,2]
[309739364,1704042641502,-524.55826807,0.00026,2]
[309739366,1704042641514,-299.394485,0.00026301,2]
[309739368,1704042641526,-168.057017,0.00026951,2]
[309739370,1704042641537,-299.394485,0.00027275,2]
[309739371,1704042641547,-174.658866,0.00027306,2]
[309739373,1704042641558,-299.394485,0.00028248,2]
[309739375,1704042641568,-299.394485,0.00029221,2]
[309739377,1704042641578,-271.4,0.00029667,2]
[309739379,1704042641591,-271.4,0.00029667,2]
[309739380,1704042641602,-271.4,0.00029667,2]
[309739382,1704042641613,-271.4,0.00029667,2]
[309739383,1704042641626,-271.4,0.00029667,2]
[309739384,1704042641638,-299.394485,0.00030194,2]
[309739385,1704042641649,-8696.86127217,0.00032,10]
[309739386,1704042641660,-204.89257739,0.00032874,2]
[309739387,1704042641670,-789.21481007,0.00032874,2]
[309739388,1704042641681,-172.73539814,0.00033018,2]
[309739389,1704042641692,-190.55580375,0.00033018,2]
[309739390,1704042641704,-1392.96608442,0.00033798,4]
[309739391,1704042641716,-324.07863508,0.000338,2]
[309739392,1704042641728,-460.69438393,0.00034,7]
[309739393,1704042641742,-355.46290348,0.00034,7]
[309739394,1704042641757,-183.84271259,0.00034,7]
[309739395,1704042641768,-155.0,0.00035,2]
[309739396,1704042641779,-1881.06578433,0.000356,2]
[309739719,1704042646188,-524.55826807,0.000263,2]
[309739721,1704042646199,-260.21794777,0.00029666,2]
[309739727,1704042646243,-8317.55871688,0.00029666,2]
[309739780,1704042648396,25000.0,0.00021,2]
[309739781,1704042648426,10017.34504098,0.00021,2]
[309739782,1704042649967,399.4297082,0.00021,2]
[309739783,1704042652660,309.64391027,0.00021,2]
[309739785,1704043169966,342.4511039,0.00027563,120]
[309739889,1704043832562,-261.15364778,0.00027221,2]
[309739891,1704043832571,-328.07487823,0.00027221,2]
[309739893,1704043832581,-321.69811932,0.00027221,2]
[309739895,1704043832590,-1181.02086996,0.00027222,2]
[309740206,1704044808971,6606.97831057,0.00022595,2]
[309740207,1704044808998,414.0,0.00022595,2]
[309740236,1704045032557,-997.37912169,0.00021674,2]
[309740420,1704045041886,-154.86062544,0.00021673,2]
[309740421,1704045041895,-6541.62500555,0.00021674,2]
[309740422,1704045041905,-196.21226384,0.00021674,2]
[309740423,1704045041915,-154.86062544,0.00021674,4]
[309740424,1704045041924,-757.03758915,0.00021675,5]
[309740425,1704045041933,-4861.35011452,0.00021675,2]
[309740426,1704045041942,-272.94058675,0.00021676,2]
[309740427,1704045041952,-831.86518932,0.00021676,2]
[309740433,1704045043594,-67.53625042,0.00021676,2]
[309740434,1704045043604,-353.065123,0.00021683,2]
[309740435,1704045043614,-166.666666,0.00021918,2]
[309740436,1704045043623,-2772.9119083,0.00021963,2]
[309740437,1704045043633,-156.4879061,0.00022,2]
[309740438,1704045043642,-166.666666,0.00022559,2]
[309740439,1704045043652,-300.0,0.00022595,2]
[309740440,1704045043661,-4413.04921495,0.00022595,2]
[309740464,1704045177574,331.39220832,0.00020495,2]
[309740488,1704045778982,220.92813888,0.00020495,2]
[309740575,1704046234053,351.900447,0.00020338,2]
[309740578,1704046234067,-899.40143974,0.00020894,2]
[309740581,1704046234077,-154.86062544,0.00020895,4]
[309740584,1704046234086,-22090.20639509,0.00020895,2]
[309740587,1704046234095,-154.86062544,0.00020896,2]
[309740590,1704046234104,-154.86062544,0.00020896,2]
[309740595,1704046234124,-287.44008085,0.00020896,2]
[309740600,1704046234135,-7539.00412724,0.00020896,2]
[309740602,1704046234145,-4861.35011452,0.00020897,2]
[309740604,1704046234155,-174.658866,0.00020924,2]
[309740606,1704046234186,-1469.180005,0.00021024,2]
[309740608,1704046234197,-1469.180005,0.00021024,2]
[309740610,1704046234207,-1469.180005,0.00021024,2]
[309740612,1704046234218,-1469.180005,0.00021024,2]
[309740613,1704046234228,-1469.180005,0.00021024,2]
[309740616,1704046234239,-9259.0709344,0.00021279,2]
[309740618,1704046234248,-166.666666,0.00021918,2]
[309740619,1704046234259,-156.4879061,0.0002243,2]
[309740622,1704046234270,-166.666666,0.00022431,2]
[309740623,1704046234280,-1817.83080304,0.00022595,2]
[309740625,1704046234290,-173.518617,0.00022709,2]
[309740627,1704046234301,-166.666666,0.00022944,2]
[309740629,1704046234311,-200.0,0.00022992,7]
[309740631,1704046234321,-166.666666,0.00023456,2]
[309740633,1704046234332,-166.666666,0.00023969,2]
[309740636,1704046234342,-7634.40773598,0.00023989,2]
[309740686,1704046238862,-2258.93362584,0.00023989,2]
[309740687,1704046238873,-3080.28819117,0.0002399,2]
[309740688,1704046238884,-166.666666,0.00024482,2]
[309740689,1704046238894,-208.570117,0.00024658,2]
[309740690,1704046238905,-999.49065176,0.00024999,2]
[309740691,1704046238915,-2479.19472551,0.00025,2]
[309740692,1704046238926,-1732.85247983,0.00025,2]
[309740693,1704046238937,-12678.97008918,0.00025,2]
[309740777,1704046242839,-3548.94155955,0.00025,2]
[309740778,1704046242848,-997.63435414,0.00025,2]
[309740779,1704046242858,-4699.79390334,0.00025,2]
[309740780,1704046242867,-678.8162214,0.00025,2]
[309740781,1704046242877,-280.0,0.00025291,7]
[309740782,1704046242887,-7882.48696374,0.00025297,2]
[309740783,1704046242897,-220.92813888,0.00025495,2]
[309740785,1704046242906,-781.50075545,0.00026,2]
[309740788,1704046242916,-154.86062544,0.0002695,2]
[309740791,1704046242925,-154.86062544,0.00027221,2]
[309740794,1704046242935,-761.89564338,0.00027222,2]
[309740796,1704046242944,-516.73118048,0.00027247,2]
[309740801,1704046242956,-745.45067344,0.00027247,2]
[309740804,1704046242965,-668.739997,0.00027563,7]
[309740807,1704046242974,-391.0,0.00027821,15]
[309740809,1704046242983,-268.42168901,0.00029279,2]
[309740811,1704046242992,-281.68933982,0.0003,3]
[309740814,1704046243002,-1606.14579625,0.0003,2]
[309741036,1704046445449,-150.0,0.00023197,2]
[309741037,1704046445472,-1234.59423356,0.00025,2]
[309741038,1704046445493,-1000.0,0.00025,2]
[309741039,1704046445515,-4618.9411299,0.00025,2]
[309741047,1704046754450,155.2268572,0.00025,2]
[309741048,1704046756323,258.73381585,0.00025,2]
[309741049,1704046763938,14382.38077771,0.00025,2]
[309741050,1704046884952,282658.46510449,0.00025,7]
[309741051,1704046898327,545.38959198,0.00025,2]
[309741052,1704046902929,282658.46510449,0.00025,7]
[309741053,1704046906569,154.87609912,0.00025,2]
[309741054,1704046916324,383.24945978,0.00025,2]
[309741055,1704046916934,282658.46510449,0.00025,7]
[309741056,1704046928469,155.08742168,0.00025,2]
[309741057,1704046954943,68158.50321825,0.00025,7]
[309741058,1704046981520,185.6820305,0.000229,2]
[309741059,1704047181967,14453.35238629,0.000229,2]
[309741062,1704047360253,-852.37,0.00025834,3]
[309741063,1704047360275,-710.31,0.00025834,3]
[309741064,1704047360297,-7926.53185591,0.00025838,2]
[309741065,1704047360318,-154.87609912,0.00025839,2]
[309741066,1704047360341,-899.40143974,0.00025839,2]
[309741067,1704047360362,-2506.42729957,0.00025839,2]
[309741068,1704047360384,-154.87609912,0.00025839,4]
[309741069,1704047360406,-22090.20639509,0.00025839,2]
[309741070,1704047360427,-156.4879061,0.0002584,2]
[309741071,1704047360449,-1721.07220697,0.0002584,2]
[309741072,1704047360471,-4861.35011452,0.0002584,2]
[309741073,1704047360590,-2479.19472551,0.00025841,2]
[309741074,1704047360612,-75486.89585835,0.00025844,2]
[309741101,1704047434722,-154.87609912,0.00025586,2]
[309741102,1704047434732,-2802.81688075,0.00025832,2]
[309741104,1704047434741,-7539.00412724,0.00025833,2]
[309741105,1704047434750,-2704.51945415,0.00025844,2]
[309741106,1704047434759,-182.071027,0.00025855,2]
[309741107,1704047434768,-1262.18185392,0.00025993,2]
[309741108,1704047434778,-174.241097,0.00025995,2]
[309741109,1704047434787,-781.50075545,0.00026261,2]
[309741110,1704047434796,-416.590786,0.00026262,2]
[309741111,1704047434806,-240.87258316,0.00026622,2]
[309741112,1704047434816,-1149.15198572,0.00026722,2]
[309741113,1704047434825,-3938.54537635,0.00027268,2]
[309741114,1704047434835,-176.60469839,0.00027271,3]
[309741115,1704047434845,-184.62966564,0.00027399,2]
[309741116,1704047434854,-185.6820305,0.000279,2]
[309741117,1704047434863,-166.666666,0.00028073,2]
[309741118,1704047434873,-200.0,0.00028431,15]
[309741119,1704047434883,-205.069391,0.00028566,2]
[309741120,1704047434892,-166.666666,0.00028839,2]
[309741121,1704047434902,-166.666666,0.00029604,2]
[309741122,1704047434911,-981.43063264,0.0003,2]
[309741123,1704047434921,-1737.3479917,0.0003,2]
[309741124,1704047434930,-389.81642082,0.0003,3]
[309741125,1704047434939,-1022.79360181,0.0003,2]
[309741126,1704047434948,-7018.09266231,0.0003,4]
[309741127,1704047434958,-275.0,0.0003,2]
[309741128,1704047434967,-154.87609912,0.000301,5]
[309741129,1704047434976,-200.0,0.00030101,2]
[309741130,1704047434985,-166.666666,0.00030369,2]
[309741131,1704047434994,-622.21870216,0.000304,2]
[309741132,1704047435004,-153.0,0.00030959,2]
[309741133,1704047435013,-166.666666,0.00031135,2]
[309741134,1704047435023,-280.0,0.00031274,15]
[309741135,1704047435032,-174.071331,0.00031679,2]
[309741136,1704047435041,-166.666666,0.000319,2]
[309741137,1704047435050,-153.0,0.00031918,2]
[309741138,1704047435060,-213.0786449,0.00031918,2]
[309741139,1704047435069,-153.0,0.00031918,2]
[309741140,1704047435079,-164.76305308,0.00032,50]
[309741141,1704047435088,-984.02539987,0.00032,2]
[309741142,1704047435097,-620.7807404,0.00032007,2]
[309741143,1704047435107,-620.1785376,0.00032009,2]
[309741144,1704047435117,-150.0,0.00032767,2]
[309741145,1704047435127,-535.81682109,0.00032783,2]
[309741146,1704047435136,-700.0,0.00032783,2]
[309741147,1704047435146,-802.09085757,0.00032783,2]
[309741148,1704047435155,-375.70791631,0.00032783,2]
[309741149,1704047435165,-205.069391,0.00032794,2]
[309741150,1704047435174,-169.859997,0.00032877,2]
[309741151,1704047435184,-169.859997,0.00032877,41]
[309741152,1704047435194,-169.859997,0.00032877,80]
[309741153,1704047435203,-169.859997,0.00032877,119]
[309741154,1704047435213,-185.6820305,0.000329,2]
[309741155,1704047435223,-275.0,0.00033,2]
[309741156,1704047435233,-2623.06185187,0.00034,2]
[309741157,1704047435243,-1000.0,0.00034,7]
[309741158,1704047435252,-6531.56445329,0.00034102,4]
[309741159,1704047435262,-3330.97180012,0.00034103,2]
[309741160,1704047435271,-153.0,0.00034329,2]
[309741161,1704047435281,-391.0,0.00034402,15]
[309741162,1704047435291,-665.95736759,0.0003496,5]
[309741163,1704047435301,-169.46607888,0.00035,30]
[309741164,1704047435312,-155.0,0.00035,2]
[309741165,1704047435322,-349.84172082,0.00035134,30]
[309741166,1704047435332,-5947.47531549,0.00035141,4]
[309741167,1704047435341,-231.2374,0.00035422,2]
[309741168,1704047435350,-131.82307887,0.00035562,2]
[309741169,1704047435368,-21.17692113,0.00035562,2]
[309741170,1704047435378,-1461.39395718,0.000356,2]
[309741171,1704047435730,-58085.66992347,0.000356,2]
[309741172,1704047435739,-200.0,0.000356,4]
[309741173,1704047435748,-200.0,0.000356,7]
[309741174,1704047435757,-637.064068,0.00035616,120]
[309741175,1704047435766,-326.0,0.00035753,2]
[309741176,1704047435775,-591.92,0.00035886,3]
[309741177,1704047435785,-493.27,0.00035886,3]
[309741178,1704047435794,-411.06,0.00035886,3]
[309741179,1704047435804,-1208.40884418,0.00035896,4]
[309741180,1704047435813,-1900.57368127,0.00035896,4]
[309741181,1704047435823,-13491.62252106,0.00035896,4]
[309741182,1704047435833,-13396.27726803,0.00035897,4]
[309741183,1704047435842,-396.80860826,0.00035897,2]
[309741184,1704047435852,-155.20689925,0.00035898,4]
[309741185,1704047435861,-2765.37735907,0.00035898,4]
[309741186,1704047435870,-2334.19339693,0.00035898,2]
[309741187,1704047435880,-1036.26915718,0.00035898,4]
[309741188,1704047435890,-470.03226476,0.00035898,4]
[309741189,1704047435899,-190.08219911,0.00035898,4]
[309741190,1704047435909,-322.13662685,0.00035898,4]
[309741191,1704047435918,-3367.5606712,0.00035898,4]
[309741192,1704047435927,-338.27364817,0.00035899,4]
[309741193,1704047435936,-7921.34168169,0.00035899,2]
[309741194,1704047435945,-411.0,0.00035899,2]
[309741195,1704047435955,-448.49165954,0.00035899,2]
[309741196,1704047435964,-70259.48619909,0.000359,2]
[309741197,1704047435973,-318.4,0.00035999,2]
[309741198,1704047435982,-318.4,0.00035999,2]
[309741199,1704047435991,-318.4,0.00035999,2]
[309741200,1704047436000,-318.4,0.00035999,2]
[309741201,1704047436010,-318.4,0.00035999,2]
[309741202,1704047436019,-318.4,0.00035999,2]
[309741203,1704047436028,-510.30155589,0.00035999,14]
[309741204,1704047436037,-318.4,0.00035999,2]
[309741205,1704047436047,-184.62361832,0.00035999,4]
[309741206,1704047436056,-500.0,0.00035999,4]
[309741207,1704047436066,-500.0,0.00035999,4]
[309741208,1704047436075,-207.29495954,0.00035999,4]
[309741209,1704047436084,-366.96987181,0.00035999,4]
[309741210,1704047436095,-322.05185698,0.00035999,4]
[309741211,1704047436108,-500.0,0.00035999,4]
[309741212,1704047436117,-500.0,0.00035999,4]
[309741213,1704047436126,-500.0,0.00035999,4]
[309741214,1704047436135,-500.0,0.00035999,4]
[309741215,1704047436145,-192.21071123,0.00035999,7]
[309741216,1704047436154,-246.6,0.00035999,7]
[309741217,1704047436163,-257282.83805391,0.00036,2]
[309741218,1704047436172,-3380.5723757,0.00036,4]
[309741219,1704047436183,-1603.08335994,0.00036,4]
[309741220,1704047436193,-200.0,0.00036,8]
[309741221,1704047436202,-275.0,0.00036,2]
[309741222,1704047436211,-155.0,0.0003637,2]
[309741223,1704047436220,-305.365,0.00036532,2]
[309741224,1704047436229,-167.801768,0.00037243,2]
[309741225,1704047436238,-153.0,0.00037562,2]
[309741226,1704047436248,-153.0,0.00037562,2]
[309741227,1704047436259,-153.0,0.00037562,2]
[309741228,1704047436269,-153.0,0.00037562,2]
[309741229,1704047436279,-153.0,0.00037562,2]
[309741230,1704047436291,-153.0,0.00037562,2]
[309741231,1704047436300,-153.0,0.00037562,2]
[309741232,1704047436310,-153.0,0.00037562,2]
[309741233,1704047436319,-153.0,0.00037562,2]
[309741234,1704047436329,-153.0,0.00037562,2]
[309741235,1704047436339,-153.0,0.00037562,2]
[309741236,1704047436348,-153.0,0.00037562,2]
[309741237,1704047436358,-153.0,0.00037562,2]
[309741238,1704047436367,-153.0,0.00037562,2]
[309741239,1704047436376,-150.0,0.0003762,2]
[309741240,1704047436386,-250.0,0.0003762,2]
[309741241,1704047436395,-155.0,0.0003774,2]
[309741242,1704047436405,-200.0,0.00037842,15]
[309741243,1704047436414,-348.0,0.00037842,15]
[309741244,1704047436424,-235.2644,0.00038,4]
[309741245,1704047436434,-1496.95168358,0.00038,120]
[309741246,1704047436444,-19332.203796,0.00038109,30]
[309741247,1704047436453,-153.0,0.0003811,2]
[309741248,1704047436462,-153.0,0.0003811,2]
[309741249,1704047436471,-153.0,0.0003811,2]
[309741250,1704047436481,-151.0,0.00038267,10]
[309741251,1704047436490,-500.0,0.00038356,2]
[309741252,1704047436499,-154.3469989,0.00038356,2]
[309741253,1704047436508,-153.0,0.00038356,2]
[309741254,1704047436518,-1270.53926394,0.00038459,2]
[309741255,1704047436527,-153.0,0.00038575,2]
[309741256,1704047436535,-153.0,0.00038575,2]
[309741257,1704047436544,-153.0,0.00038575,2]
[309741258,1704047436554,-500.0,0.0003863,2]
[309741259,1704047436563,-176.60469839,0.00038648,2]
[309741260,1704047436572,-499.42415777,0.000388,45]
[309741261,1704047436582,-500.0,0.00038904,2]
[309741262,1704047436591,-4908.99027593,0.00039,4]
[309741263,1704047436601,-637.23027955,0.00039038,4]
[309741264,1704047436611,-554.95298837,0.00039039,4]
[309741265,1704047436622,-5546.11252394,0.00039047,4]
[309741266,1704047436631,-7116.0309365,0.00039047,4]
[309741267,1704047436642,-7056.91016986,0.00039048,2]
[309741268,1704047436651,-155.67646071,0.00039048,4]
[309741269,1704047436660,-23325.67728401,0.00039049,2]
[309741270,1704047436670,-6020.09941626,0.00039049,2]
[309741271,1704047436679,-8244.45735919,0.00039049,2]
[309741272,1704047436688,-167.801768,0.00039106,2]
[309741273,1704047436697,-155.0,0.0003911,2]
[309741274,1704047436706,-150.0,0.00039148,7]
[309741275,1704047436716,-194.82,0.00039148,60]
[309741276,1704047436725,-221.0,0.0003915,60]
[309741277,1704047436733,-150.0,0.00039158,7]
[309741278,1704047436742,-150.0,0.00039158,60]
[309741279,1704047436751,-221.0,0.0003916,60]
[309741280,1704047436760,-159.0,0.00039168,60]
[309741281,1704047436769,-150.0,0.00039168,7]
[309741282,1704047436778,-150.0,0.00039168,60]
[309741283,1704047436787,-500.0,0.00039178,2]
[309741284,1704047436796,-416.590786,0.00039394,2]
[309741285,1704047436805,-155.9906704,0.00039397,2]
[309741286,1704047436815,-194.89842825,0.0003945,4]
[309741287,1704047436824,-320.42875216,0.00039451,4]
[309741288,1704047436834,-500.0,0.00039452,2]
[309741289,1704047436843,-238.0,0.00039532,2]
[309741290,1704047436852,-236.22612456,0.00039726,2]